bitfinex/quotes_SOLUSD_20250207
["timestamp","ask_amount","ask_price","bid_price","bid_amount"]
[1738965032076,26.54704363,190.05,190.01,0.063]
[1738965032361,26.54704363,190.04,190.01,0.063]
[1738965032557,26.54704363,190.05,190.01,0.063]
[1738965033154,4.68,190.08,190.02,26.54704363]
[1738965033373,51.80764363,190.09,190.02,26.54704363]
[1738965033576,26.54704363,190.1,190.03,26.54704363]
[1738965033878,4.68,190.11,190.07,26.54704363]
[1738965034454,4.68,190.11,190.06,26.54704363]
[1738965034673,20.12549,190.02,190.01,0.063]
[1738965034869,46.67253363,190.02,190.01,0.063]
[1738965035179,0.12549,190.01,189.96,0.03]
[1738965035384,26.54704363,189.97,189.96,0.03]
[1738965035557,4.68,189.97,189.96,0.03]
[1738965037488,31.35253363,189.97,189.96,0.03]
[1738965037658,36.61643363,189.97,189.96,0.03]
[1738965038357,36.49094363,189.97,189.96,0.03]
[1738965040294,50.15377216,189.97,189.96,0.03]
[1738965042995,20.25098,189.94,189.93,0.03]
[1738965043157,60.20987216,189.94,189.93,0.03]
[1738965043359,13.66282853,189.93,189.84,1.5985]
[1738965043556,26.54704363,189.87,189.84,1.5985]
[1738965043762,26.54704363,189.89,189.84,1.5985]
[1738965044492,26.54704363,189.9,189.84,1.5985]
[1738965044792,26.54704363,189.92,189.85,31.81434363]
[1738965044987,26.54704363,189.9,189.85,5.2673]
[1738965045164,26.54704363,189.93,189.86,26.54704363]
[1738965045361,5.2642,189.96,189.89,26.54704363]
[1738965045362,31.81124363,189.96,189.89,26.54704363]
[1738965045800,36.51124363,189.96,189.9,5.2659]
[1738965046599,4.7,189.96,189.9,31.81294363]
[1738965046797,26.54704363,189.98,189.91,26.54704363]
[1738965047107,4.7,189.97,189.91,26.54704363]
[1738965047276,26.54704363,189.96,189.9,38.02204363]
[1738965047591,4.7,189.97,189.91,26.54704363]
[1738965048000,4.7,189.97,189.9,38.02204363]
[1738965048181,26.54704363,189.96,189.9,11.475]
[1738965052213,31.24704363,189.98,189.91,28.08604363]
[1738965052912,26.54704363,189.96,189.91,1.539]
[1738965055007,26.54704363,189.97,189.91,6.8046]
[1738965056801,31.24704363,189.99,189.92,26.54704363]
[1738965056995,26.54704363,189.98,189.91,33.35164363]
[1738965057213,26.54704363,189.95,189.91,6.8046]
[1738965057395,26.54704363,189.94,189.91,6.8046]
[1738965057794,26.54704363,189.96,189.91,6.8046]
[1738965058295,26.54704363,189.95,189.91,6.8046]
[1738965058619,26.54704363,189.96,189.91,6.8046]
[1738965058788,5.264,189.97,189.91,6.8046]
[1738965058789,31.81104363,189.97,189.91,6.8046]
[1738965058994,31.84104363,189.97,189.91,6.8046]
[1738965059501,0.03,189.97,189.91,33.35164363]
[1738965059711,0.03,189.97,189.92,26.54704363]
[1738965060020,0.03,189.97,189.96,26.54704363]
[1738965060321,0.03,189.97,189.96,31.81124363]
[1738965060614,0.03,189.97,189.96,5.2642]
[1738965061127,0.03,189.97,189.96,31.81124363]
[1738965061421,0.03,189.97,189.96,5.2642]
[1738965062713,0.03,189.97,189.91,2.32833897]
[1738965062714,0.03,189.97,189.91,28.08604363]
[1738965062922,26.57704363,189.97,189.91,28.08604363]
[1738965063221,26.54704363,189.94,189.91,1.539]
[1738965063423,26.54704363,189.93,189.91,1.539]
[1738965063724,26.54704363,189.92,189.87,1.5967]
[1738965063917,26.54704363,189.9,189.87,1.5967]
[1738965064592,26.54704363,189.91,189.87,1.5967]
[1738965066090,26.54704363,189.9,189.87,1.5967]
[1738965066298,26.54704363,189.88,189.84,0.063]
[1738965066917,26.54704363,189.9,189.84,5.3305]
[1738965067145,26.54704363,189.91,189.84,31.87754363]
[1738965067323,26.54704363,189.86,189.84,0.063]
[1738965067700,26.54704363,189.88,189.84,0.063]
[1738965068309,26.54704363,189.89,189.84,0.063]
[1738965069640,26.54704363,189.87,189.84,0.063]
[1738965069794,26.54704363,189.85,189.84,0.063]
[1738965071329,32.06532363,189.85,189.84,0.063]
[1738965071535,45.47717216,189.85,189.84,0.063]
[1738965071825,46.47717216,189.85,189.84,0.063]
[1738965072030,33.66282853,189.82,189.81,0.0001]
[1738965072205,64.90987216,189.82,189.81,0.0001]
[1738965072412,93.45691579,189.82,189.81,0.0001]
[1738965072806,33.53733853,189.78,189.77,0.03]
[1738965073021,60.08438216,189.78,189.77,0.03]
[1738965073422,65.35358216,189.78,189.77,0.03]
[1738965074321,66.47907216,189.78,189.77,0.0001]
[1738965074832,66.47907216,189.78,189.74,0.03]
[1738965074833,33.66282853,189.76,189.74,0.03]
[1738965075131,60.20987216,189.76,189.74,0.03]
[1738965075337,65.47967216,189.76,189.74,0.03]
[1738965077805,67.47967216,189.76,189.75,0.0001]
[1738965078017,14.66282853,189.75,189.74,0.0001]
[1738965078218,42.20987216,189.75,189.74,0.0001]
[1738965078832,40.20987216,189.75,189.74,0.0001]
[1738965080013,45.35438216,189.75,189.74,0.0001]
[1738965082030,31.81704363,189.75,189.74,0.0001]
[1738965082235,31.27704363,189.75,189.74,0.0001]
[1738965082529,31.40253363,189.75,189.74,0.0001]
[1738965082728,51.20987216,189.75,189.74,0.0001]
[1738965083037,33.66282853,189.71,189.64,1.6586]
[1738965083242,93.02811579,189.71,189.7,0.0001]
[1738965083534,92.02811579,189.71,189.7,0.0001]
[1738965083940,65.48107216,189.71,189.7,0.0001]
[1738965084105,56.64373363,189.71,189.7,0.0001]
[1738965085017,70.18107216,189.71,189.7,0.0001]
[1738965085238,96.72811579,189.71,189.7,0.0001]
[1738965085613,70.18107216,189.71,189.7,0.0001]
[1738965086339,56.64373363,189.71,189.7,0.0001]
[1738965086650,51.24704363,189.71,189.7,0.0001]
[1738965087143,56.51824363,189.71,189.7,0.0001]
[1738965088818,51.81824363,189.71,189.7,0.0001]
[1738965089018,70.18107216,189.71,189.7,0.0001]
[1738965089535,70.18107216,189.71,189.6,4.7743]
[1738965089740,0.25098,189.7,189.6,4.7743]
[1738965090115,20.0,189.67,189.58,33.40934363]
[1738965090322,26.54704363,189.65,189.58,33.40934363]
[1738965090640,15.03199523,189.62,189.58,1.5878]
[1738965091142,15.03199523,189.6,189.58,1.5878]
[1738965091314,15.03199523,189.59,189.55,0.063]
[1738965091510,15.03199523,189.56,189.55,0.063]
[1738965091939,15.03199523,189.57,189.55,0.063]
[1738965093024,4.7,189.59,189.55,0.063]
[1738965093219,4.7,189.59,189.56,15.03199523]
[1738965093452,4.7,189.59,189.57,15.03199523]
[1738965093814,4.7,189.64,189.58,15.03199523]
[1738965094021,19.73199523,189.64,189.58,15.03199523]
[1738965094245,4.7,189.64,189.6,15.03199523]
[1738965094437,4.7,189.64,189.62,15.03199523]
[1738965094647,4.7,189.64,189.62,24.03662517]
[1738965095042,44.03662517,189.68,189.62,24.03662517]
[1738965095043,24.03662517,189.68,189.62,24.03662517]
[1738965095344,28.73662517,189.68,189.62,24.03662517]
[1738965095525,28.73662517,189.68,189.61,24.03662517]
[1738965095925,24.03662517,189.68,189.62,25.57432517]
[1738965096125,28.73662517,189.68,189.62,25.57432517]
[1738965096847,28.73662517,189.68,189.62,30.84782517]
[1738965097543,4.7,189.68,189.63,24.03662517]
[1738965097731,4.7,189.7,189.65,24.03662517]
[1738965098428,29.30742517,189.73,189.66,24.03662517]
[1738965098633,4.7,189.71,189.67,5.2723]
[1738965098818,24.03662517,189.7,189.66,5.2725]
[1738965099018,24.03662517,189.68,189.63,5.2734]
[1738965099535,24.03662517,189.67,189.62,6.8114]
[1738965099923,24.03662517,189.67,189.62,1.5377]
[1738965100124,24.03662517,189.66,189.62,1.5377]
[1738965100361,24.03662517,189.67,189.62,1.5377]
[1738965101349,29.30872517,189.68,189.62,1.5377]
[1738965101942,29.30872517,189.68,189.62,6.8113]
[1738965102248,24.03662517,189.65,189.62,1.5377]
[1738965102626,24.03662517,189.64,189.57,44.92262517]
[1738965102823,24.03662517,189.64,189.58,5.2748]
[1738965103123,29.30932517,189.66,189.59,24.03662517]
[1738965103337,24.03662517,189.67,189.6,24.03662517]
[1738965104251,24.03662517,189.68,189.61,24.03662517]
[1738965104449,24.03662517,189.69,189.62,24.03662517]
[1738965104625,4.7,189.69,189.63,24.03662517]
[1738965104825,4.7,189.69,189.64,24.03662517]
[1738965105453,4.7,189.69,189.65,24.03662517]
[1738965105752,0.03,189.75,189.67,24.03662517]
[1738965105753,105.33662517,189.74,189.67,24.03662517]
[1738965105952,4.7,189.73,189.68,24.03662517]
[1738965106542,28.73662517,189.73,189.66,24.03662517]
[1738965107134,28.73662517,189.73,189.67,5.2723]
[1738965107441,28.73662517,189.73,189.62,1.5206]
[1738965107442,24.03662517,189.68,189.62,1.5206]
[1738965107757,24.03662517,189.66,189.62,1.5206]
[1738965108851,24.03662517,189.67,189.62,6.7942]
[1738965109032,24.03662517,189.65,189.62,1.5206]
[1738965109224,24.03662517,189.65,189.59,5.2745]
[1738965109433,24.03662517,189.64,189.57,31.74372517]
[1738965109624,24.03662517,189.63,189.58,5.2747]
[1738965109830,24.03662517,189.64,189.58,5.2747]
[1738965110252,24.03662517,189.67,189.59,24.03662517]
[1738965110458,24.03662517,189.67,189.6,24.03662517]
[1738965110763,29.30902517,189.67,189.6,29.31082517]
[1738965110949,24.03662517,189.67,189.6,29.31082517]
[1738965111132,24.03662517,189.66,189.59,24.03662517]
[1738965111332,24.03662517,189.64,189.57,31.74372517]
[1738965111763,24.03662517,189.65,189.58,24.03662517]
[1738965112232,24.03662517,189.63,189.58,5.2747]
[1738965112634,44.03662517,189.64,189.58,5.2747]
[1738965113158,24.03662517,189.65,189.58,29.31132517]
[1738965114041,4.7,189.66,189.6,24.03662517]
[1738965114561,24.03662517,189.67,189.6,24.03662517]
[1738965114763,81.3,189.68,189.62,24.03662517]
[1738965114936,86.0,189.68,189.62,24.03662517]
[1738965115138,4.7,189.68,189.62,24.03662517]
[1738965115737,29.30802517,189.7,189.63,24.03662517]
[1738965115959,34.00802517,189.7,189.63,24.03662517]
[1738965116158,34.00802517,189.7,189.63,29.30982517]
[1738965116765,24.03662517,189.69,189.63,5.2732]
[1738965116967,0.03,189.69,189.67,24.03662517]
[1738965117133,0.03,189.69,189.63,5.2732]
[1738965117469,24.03662517,189.68,189.62,5.2736]
[1738965117640,20.0,189.67,189.58,5.2748]
[1738965118354,20.0,189.68,189.58,5.2748]
[1738965118550,0.12549,189.67,189.58,5.2748]
[1738965118752,24.03662517,189.65,189.58,29.31142517]
[1738965119238,24.03662517,189.61,189.55,0.063]
[1738965119757,24.03662517,189.63,189.56,24.03662517]
[1738965119962,24.03662517,189.65,189.58,24.03662517]
[1738965120175,105.33662517,189.66,189.58,24.03662517]
[1738965120335,81.3,189.66,189.6,24.03662517]
[1738965120540,44.03662517,189.67,189.6,24.03662517]
[1738965120961,24.03662517,189.66,189.59,29.31112517]
[1738965121260,44.03662517,189.67,189.59,29.31112517]
[1738965121839,24.03662517,189.66,189.59,29.31112517]
[1738965122039,24.03662517,189.65,189.59,5.2745]
[1738965122871,24.03662517,189.64,189.59,5.2745]
[1738965123246,24.03662517,189.64,189.57,24.03662517]
[1738965123461,24.03662517,189.62,189.58,5.2748]
[1738965123779,24.03662517,189.6,189.55,0.063]
[1738965123956,5.2729,189.65,189.55,0.063]
[1738965124164,24.03662517,189.62,189.55,29.37512517]
[1738965124696,24.03662517,189.59,189.55,0.063]
[1738965124882,24.03662517,189.58,189.55,0.063]
[1738965125580,24.03662517,189.6,189.55,0.063]
[1738965127215,81.3,189.62,189.57,24.03662517]
[1738965127360,110.03662517,189.67,189.6,24.03662517]
[1738965127685,81.3,189.66,189.63,24.03662517]
[1738965127892,81.3,189.66,189.62,25.62632517]
[1738965128086,81.3,189.66,189.62,1.5897]
[1738965128587,81.3,189.66,189.65,24.03662517]
[1738965128891,0.03,189.69,189.66,5.2725]
[1738965129193,0.03,189.69,189.67,24.03662517]
[1738965129958,0.03,189.69,189.65,24.03662517]
[1738965130162,0.03,189.69,189.64,29.30942517]
[1738965130569,24.06662517,189.69,189.64,5.2728]
[1738965130981,24.03662517,189.66,189.62,1.5897]
[1738965131185,24.03662517,189.65,189.62,1.5897]
[1738965131500,24.03662517,189.66,189.6,11.8019]
[1738965131698,24.03662517,189.65,189.6,11.8019]
[1738965132408,24.03662517,189.65,189.6,6.5277]
[1738965132984,24.03662517,189.64,189.59,5.2743]
[1738965133299,105.33662517,189.68,189.61,24.03662517]
[1738965133798,81.3,189.68,189.67,24.03662517]
[1738965133998,0.03,189.69,189.67,24.03662517]
[1738965135002,0.03,189.69,189.67,29.30882517]
[1738965135880,0.03,189.69,189.66,24.03662517]
[1738965136369,0.03,189.69,189.65,24.03662517]
[1738965136976,0.03,189.69,189.66,5.2725]
[1738965139607,0.03,189.69,189.68,24.03662517]
[1738965139916,0.03,189.75,189.68,39.1259637]
[1738965140080,0.03,189.75,189.73,24.03662517]
[1738965140278,0.03,189.75,189.74,24.03662517]
[1738965141293,0.03,189.75,189.74,29.30692517]
[1738965141482,0.03,189.75,189.74,30.09719355]
[1738965141693,8.25332639,189.82,189.74,56.81043208]
[1738965141899,8.25332639,189.82,189.8,24.03662517]
[1738965142513,8.25332639,189.82,189.81,24.03662517]
[1738965143006,8.25332639,189.82,189.8,24.03662517]
[1738965143179,8.25332639,189.82,189.79,24.03662517]
[1738965143380,0.03,189.82,189.78,30.90792517]
[1738965143785,0.03,189.82,189.79,24.03662517]
[1738965144411,0.03,189.82,189.76,6.0422]
[1738965144412,0.03,189.82,189.77,24.03662517]
[1738965144597,24.03662517,189.78,189.73,1.6615]
[1738965144803,24.03662517,189.79,189.73,6.9321]
[1738965145001,24.03662517,189.8,189.74,24.03662517]
[1738965145208,5.2981,189.82,189.74,24.03662517]
[1738965145499,24.03662517,189.8,189.73,30.96852517]
[1738965145712,24.03662517,189.8,189.74,24.03662517]
[1738965145912,0.03,189.82,189.76,24.03662517]
[1738965147007,24.06662517,189.82,189.75,24.03662517]
[1738965147314,24.06662517,189.82,189.73,1.6615]
[1738965147315,24.03662517,189.78,189.73,1.6615]
[1738965147611,24.03662517,189.79,189.73,6.9321]
[1738965148096,24.03662517,189.78,189.73,1.6615]
[1738965148294,24.03662517,189.78,189.71,29.30772517]
[1738965148815,105.33662517,189.81,189.75,24.03662517]
[1738965148982,24.03662517,189.8,189.73,24.03662517]
[1738965149508,24.03662517,189.79,189.72,29.30732517]
[1738965149732,5.2689,189.8,189.73,24.03662517]
[1738965149733,29.30552517,189.8,189.73,24.03662517]
[1738965150088,24.03662517,189.79,189.72,29.30732517]
[1738965150292,29.30552517,189.8,189.73,24.03662517]
[1738965150921,29.30552517,189.8,189.69,32.10512517]
[1738965150922,24.03662517,189.76,189.69,32.10512517]
[1738965151213,24.03662517,189.75,189.69,1.5749]
[1738965151416,24.03662517,189.74,189.67,29.30862517]
[1738965151728,24.03662517,189.72,189.67,5.272]
[1738965151883,81.3,189.73,189.65,1.6486]
[1738965151884,24.03662517,189.7,189.65,1.6486]
[1738965152088,24.03662517,189.69,189.63,5.2731]
[1738965152284,24.03662517,189.67,189.61,6.9223]
[1738965152521,24.03662517,189.67,189.61,1.6485]
[1738965152691,24.03662517,189.65,189.6,0.063]
[1738965152896,24.03662517,189.67,189.6,29.37362517]
[1738965153096,24.03662517,189.66,189.6,5.337]
[1738965153387,24.03662517,189.67,189.6,29.37362517]
[1738965153795,29.30892517,189.68,189.61,24.03662517]
[1738965154013,33.98892517,189.68,189.61,24.03662517]
[1738965154223,4.68,189.68,189.62,24.03662517]
[1738965154408,28.71662517,189.68,189.61,29.31052517]
[1738965154612,28.71662517,189.68,189.62,24.03662517]
[1738965155530,28.71662517,189.68,189.62,29.31012517]
[1738965156020,105.33662517,189.7,189.63,24.03662517]
[1738965156224,81.3,189.7,189.64,24.03662517]
[1738965156604,105.33662517,189.75,189.68,24.03662517]
[1738965156819,4.68,189.74,189.68,24.03662517]
[1738965157000,4.68,189.74,189.72,24.03662517]
[1738965157426,4.68,189.74,189.71,24.03662517]
[1738965158927,29.30582517,189.78,189.71,24.03662517]
[1738965159426,81.3,189.79,189.73,24.03662517]
[1738965159594,81.3,189.79,189.74,24.03662517]
[1738965160194,81.3,189.79,189.73,24.03662517]
[1738965161013,81.3,189.79,189.73,29.30702517]
[1738965161910,81.3,189.79,189.74,24.03662517]
[1738965162135,110.60562517,189.79,189.72,24.03662517]
[1738965163012,29.30562517,189.79,189.72,24.03662517]
[1738965163225,29.30562517,189.79,189.72,29.30732517]
[1738965163538,28.74662517,189.8,189.74,24.03662517]
[1738965163739,28.74662517,189.8,189.76,24.03662517]
[1738965163740,0.03,189.8,189.76,24.03662517]
[1738965163919,9.5078,189.83,189.77,24.03662517]
[1738965164113,5.2678,189.83,189.77,24.03662517]
[1738965164317,110.01662517,189.84,189.77,24.03662517]
[1738965164622,110.01662517,189.84,189.78,24.03662517]
[1738965164623,81.3,189.83,189.78,24.03662517]
[1738965164825,81.3,189.83,189.79,24.03662517]
[1738965165023,35.31742517,189.86,189.81,24.03662517]
[1738965165024,81.3,189.86,189.81,24.03662517]
[1738965165216,81.3,189.86,189.81,29.30482517]
[1738965165919,81.3,189.86,189.82,24.03662517]
[1738965168232,81.3,189.86,189.81,24.03662517]
[1738965168433,86.5671,189.86,189.8,24.03662517]
[1738965168647,24.03662517,189.82,189.75,29.30662517]
[1738965169749,29.30492517,189.82,189.75,29.30662517]
[1738965170047,24.03662517,189.78,189.73,0.063]
[1738965170225,5.2683,189.82,189.73,5.3335]
[1738965170226,24.03662517,189.79,189.73,5.3335]
[1738965170541,24.03662517,189.79,189.73,29.37012517]
[1738965170756,24.03662517,189.8,189.74,24.03662517]
[1738965170919,24.03662517,189.81,189.74,24.03662517]
[1738965171120,29.30442517,189.83,189.76,24.03662517]
[1738965171422,24.03662517,189.82,189.76,5.2695]
[1738965172259,24.03662517,189.82,189.75,29.30662517]
[1738965172548,24.03662517,189.81,189.75,5.27]
[1738965173244,24.03662517,189.81,189.75,24.03662517]
[1738965173452,29.30512517,189.81,189.75,24.03662517]
[1738965173751,81.3,189.84,189.78,24.03662517]
[1738965174147,105.33662517,189.84,189.78,24.03662517]
[1738965174527,105.33662517,189.84,189.77,24.03662517]
[1738965174728,110.60442517,189.84,189.78,5.2692]
[1738965174931,86.5678,189.84,189.78,29.30582517]
[1738965175344,110.60442517,189.84,189.78,29.30582517]
[1738965175655,110.60442517,189.84,189.78,5.2692]
[1738965175959,24.03662517,189.8,189.73,24.09962517]
[1738965176562,24.03662517,189.8,189.74,5.2703]
[1738965177134,86.5678,189.84,189.73,24.09962517]
[1738965177135,24.03662517,189.78,189.73,0.063]
[1738965177336,24.03662517,189.74,189.73,0.063]
[1738965177540,24.03662517,189.76,189.73,0.063]
[1738965178042,24.03662517,189.77,189.73,0.063]
[1738965178250,24.03662517,189.78,189.73,0.063]
[1738965178631,81.3,189.79,189.73,24.09962517]
[1738965180450,81.3,189.79,189.73,0.063]
[1738965180451,24.03662517,189.77,189.73,0.063]
[1738965180637,24.03662517,189.78,189.73,0.063]
[1738965180836,110.60562517,189.79,189.73,0.063]
[1738965181033,0.12549,189.77,189.73,0.063]
[1738965181234,24.03662517,189.74,189.73,0.063]
[1738965181640,24.03662517,189.76,189.73,0.063]
[1738965181839,24.03662517,189.77,189.73,0.063]
[1738965182443,24.03662517,189.78,189.73,0.063]
[1738965182648,110.60562517,189.79,189.73,0.063]
[1738965183056,24.03662517,189.78,189.73,0.063]
[1738965183250,24.03662517,189.76,189.73,0.063]
[1738965183451,105.33662517,189.77,189.73,0.063]
[1738965183654,81.3,189.77,189.73,0.063]
[1738965185871,101.57626232,189.77,189.73,0.063]
[1738965186051,15.00676232,189.75,189.73,0.063]
[1738965188174,20.27686232,189.75,189.73,0.063]
[1738965188669,20.27656232,189.76,189.73,0.063]
[1738965189969,81.3,189.77,189.73,0.063]
[1738965190670,81.3,189.77,189.73,15.06976232]
[1738965191551,81.3,189.77,189.73,0.063]
[1738965191552,96.30676232,189.77,189.73,0.063]
[1738965191874,15.00676232,189.76,189.73,0.063]
[1738965192075,96.30676232,189.77,189.73,0.063]
[1738965192849,101.57626232,189.77,189.73,0.063]
[1738965193045,81.3,189.77,189.73,0.063]
[1738965193459,81.3,189.77,189.73,15.06976232]
[1738965193663,81.3,189.77,189.73,0.063]
[1738965194350,81.3,189.77,189.74,15.00676232]
[1738965194550,106.25496232,189.82,189.75,15.00676232]
[1738965194797,81.3,189.81,189.75,15.00676232]
[1738965195273,81.3,189.81,189.73,0.063]
[1738965195274,81.3,189.81,189.77,15.00676232]
[1738965195476,0.03,189.83,189.8,15.00676232]
[1738965195777,0.03,189.83,189.79,15.00676232]
[1738965196285,15.00676232,189.81,189.74,21.42996232]
[1738965197177,20.27536232,189.81,189.74,21.42996232]
[1738965197352,81.3,189.82,189.77,15.00676232]
[1738965197669,81.3,189.82,189.78,15.00676232]
[1738965198177,81.3,189.82,189.77,15.00676232]
[1738965198364,81.3,189.82,189.76,15.00676232]
[1738965198579,81.3,189.82,189.77,15.00676232]
[1738965198756,81.3,189.82,189.78,15.00676232]
[1738965199490,0.03,189.83,189.78,16.65326232]
[1738965199787,0.03,189.83,189.82,15.00676232]
[1738965202466,0.03,189.83,189.82,20.27486232]
[1738965202672,0.03,189.83,189.82,26.63286232]
[1738965204286,0.0001,189.83,189.82,42.08559824]
[1738965204458,0.03,189.88,189.86,20.0]
[1738965204818,0.03,189.88,189.87,28.54410085]
[1738965204968,0.03,189.88,189.87,29.66959085]
[1738965205374,0.03,189.88,189.87,15.00676232]
[1738965205761,0.03,189.88,189.87,28.66959085]
[1738965205966,0.03,189.94,189.93,15.00676232]
[1738965206575,0.03,189.94,189.93,20.27176232]
[1738965206872,0.03,189.94,189.93,20.52274232]
[1738965207087,0.03,189.94,189.93,35.72398819]
[1738965207493,0.03,189.99,189.97,20.12549]
[1738965207698,0.03,189.99,189.98,15.00676232]
[1738965208201,0.03,189.99,189.98,44.67635317]
[1738965208380,0.03,189.99,189.98,50.94005317]
[1738965209993,0.03,189.99,189.98,52.28724352]
[1738965210194,0.03,189.99,189.98,50.94005317]
[1738965210393,0.03,189.99,189.98,20.27046232]
[1738965210689,0.03,189.99,189.98,15.00676232]
[1738965211597,0.03,189.99,189.98,20.27046232]
[1738965212690,0.03,189.99,189.98,26.60046617]
[1738965216404,0.03,189.99,189.98,31.86416617]
[1738965216607,0.03,189.99,189.97,26.60046617]
[1738965216903,0.03,189.99,189.95,26.60046617]
[1738965217110,0.03,189.99,189.93,26.60046617]
[1738965217803,0.03,189.99,189.94,26.60046617]
[1738965219296,0.03,189.99,189.93,26.60046617]
[1738965220705,26.63046617,189.99,189.92,26.60046617]
[1738965220907,26.60046617,189.98,189.91,26.60046617]
[1738965221215,0.03,189.99,189.93,31.86536617]
[1738965221429,0.03,189.99,189.94,26.60046617]
[1738965222512,0.03,189.99,189.92,26.60046617]
[1738965222513,26.63046617,189.99,189.92,26.60046617]
[1738965223092,26.60046617,189.98,189.91,26.60046617]
[1738965223592,0.03,189.99,189.94,26.60046617]
[1738965223801,0.03,189.99,189.95,26.60046617]
[1738965224406,0.03,189.99,189.95,31.86486617]
[1738965225014,0.03,189.99,189.96,26.60046617]
[1738965225308,0.03,189.99,189.97,26.60046617]
[1738965225514,0.03,189.99,189.98,26.60046617]
[1738965229592,0.03,189.99,189.98,31.86416617]
[1738965229919,0.03,189.99,189.98,45.5269947]
[1738965230096,0.03,190.02,190.01,20.0]
[1738965230295,0.03,190.02,190.01,60.92694435]
[1738965231521,0.03,190.02,190.01,68.31523435]
[1738965233722,0.03,190.02,190.01,67.31523435]
[1738965234845,8.2437,190.13,190.03,13.53733853]
[1738965234996,16.61031555,190.1,190.03,16.61031555]
[1738965235201,16.61031555,190.09,190.02,16.61031555]
[1738965235708,16.61031555,190.09,190.03,16.61031555]
[1738965235916,16.61031555,190.1,190.03,16.61031555]
[1738965236140,16.61031555,190.11,190.04,16.61031555]
[1738965236529,5.2598,190.12,190.06,16.61031555]
[1738965236530,16.61031555,190.12,190.06,16.61031555]
[1738965236716,29.51401555,190.13,190.06,16.61031555]
[1738965236916,29.51401555,190.13,190.04,16.61031555]
[1738965236917,16.61031555,190.1,190.04,16.61031555]
[1738965237115,18.1634,190.13,190.02,16.61031555]
[1738965237116,16.61031555,190.09,190.02,16.61031555]
[1738965238451,16.61031555,190.09,190.02,21.87281555]
[1738965239515,16.61031555,190.09,190.03,16.61031555]
[1738965239717,16.61031555,190.1,190.03,16.61031555]
[1738965240122,16.61031555,190.09,190.02,21.87281555]
[1738965240341,16.61031555,190.06,189.99,36.61031555]
[1738965240647,5.2606,190.09,190.0,16.61031555]
[1738965240648,16.61031555,190.07,190.0,16.61031555]
[1738965240829,81.3,190.08,190.02,16.61031555]
[1738965241011,16.61031555,190.05,189.99,25.2633]
[1738965241542,16.61031555,190.05,189.95,13.1611]
[1738965241543,16.61031555,190.03,189.96,16.61031555]
[1738965241723,16.61031555,190.04,189.97,16.61031555]
[1738965241925,16.61031555,190.05,189.98,16.61031555]
[1738965242126,16.61031555,190.04,189.97,16.61031555]
[1738965242449,16.61031555,190.04,189.97,21.87411555]
[1738965242610,16.61031555,190.05,189.98,16.61031555]
[1738965243017,97.91031555,190.08,190.0,16.61031555]
[1738965243238,97.91031555,190.08,190.01,16.61031555]
[1738965243438,81.3,190.08,190.02,16.61031555]
[1738965243621,16.64031555,190.11,190.04,16.61031555]
[1738965243935,16.64031555,190.11,189.98,14.53733853]
[1738965243936,9.9501,190.11,190.0,30.14765408]
[1738965244137,21.30031555,190.11,190.04,16.61031555]
[1738965244542,21.30031555,190.11,190.05,5.2617]
[1738965245725,26.56041555,190.11,190.05,5.2617]
[1738965246545,4.69,190.11,190.05,16.61031555]
[1738965246737,0.03,190.11,190.06,16.61031555]
[1738965248345,0.03,190.11,190.07,16.61031555]
[1738965248544,16.64031555,190.11,190.04,36.61031555]
[1738965248839,0.03,190.11,190.06,16.61031555]
[1738965249020,0.03,190.11,190.08,16.61031555]
[1738965249218,0.03,190.11,190.09,16.61031555]
[1738965249435,0.03,190.11,190.1,16.61031555]
[1738965249636,0.03,190.11,190.1,31.92494408]
[1738965249848,0.03,190.13,190.12,33.53733853]
[1738965250122,0.03,190.13,190.12,50.93628987]
[1738965250333,0.03,190.13,190.12,51.93628987]
[1738965250549,0.0001,190.13,190.12,52.06177987]
[1738965250924,0.0001,190.13,190.12,57.32157987]
[1738965251128,0.0001,190.13,190.12,58.63895521]
[1738965252124,0.0001,190.13,190.12,57.32157987]
[1738965252324,0.0001,190.13,190.12,56.32157987]